bitfinex-derivatives/quotes_ETHF0:USTF0_20250701
["timestamp","ask_amount","ask_price","bid_price","bid_amount"]
[1751362823416,0.81483,2454.0,2453.9,0.81481]
[1751362826520,0.8148,2454.1,2454.0,0.81481]
[1751362828920,0.81476,2454.3,2453.9,2.34310429]
[1751362829118,0.81474,2454.2,2454.1,3.15784429]
[1751362831123,4.04044423,2454.5,2454.4,0.81467]
[1751362831324,0.81465,2454.5,2454.4,0.81467]
[1751362831718,0.81467,2454.4,2454.3,3.15776429]
[1751362832119,3.41775,2454.7,2454.2,1.52274]
[1751362832120,0.81471,2454.3,2454.2,1.52274]
[1751362832920,0.81477,2454.1,2454.0,0.81481]
[1751362833333,0.81484,2454.0,2453.9,0.81481]
[1751362833535,4.07957,2454.2,2454.0,0.81481]
[1751362833536,0.81479,2454.1,2454.0,0.81481]
[1751362836131,1.47616,2454.2,2454.1,0.81477]
[1751362837831,0.81476,2454.2,2454.1,0.81477]
[1751362838032,0.81476,2454.2,2454.1,3.15787429]
[1751362838934,4.81709,2454.4,2454.2,0.81471]
[1751362838935,0.81473,2454.3,2454.2,0.81471]
[1751362839138,0.81473,2454.3,2454.2,1.51441]
[1751362839333,0.81473,2454.3,2454.2,0.6997]
[1751362839534,0.81474,2454.2,2454.1,0.81475]
[1751362842834,0.81477,2454.1,2454.0,0.6997]
[1751362843030,3.43073,2454.3,2453.9,0.81482]
[1751362843031,0.81481,2454.0,2453.9,0.81482]
[1751362846042,0.81484,2453.9,2453.8,4.52225429]
[1751362846540,1.47443,2454.0,2453.9,0.81484]
[1751362848843,0.81484,2453.9,2453.8,2.17915]
[1751362849043,1.47443,2454.0,2453.9,0.81484]
[1751362849446,0.81483,2454.0,2453.9,0.81484]
[1751362850842,0.81483,2454.0,2453.9,3.15794429]
[1751362852748,2.2259,2454.1,2454.0,0.81481]
[1751362855148,0.81484,2454.0,2453.9,0.81482]
[1751362856341,0.81484,2453.9,2453.8,1.47155]
[1751362856546,0.81484,2453.9,2453.8,0.81485]
[1751362857547,0.81487,2453.8,2453.7,2.03043049]
[1751362857748,2.93677,2453.8,2453.7,2.03043049]
[1751362858946,2.93677,2453.8,2453.7,0.81487]
[1751362859250,0.81491,2453.7,2453.6,1.46581]
[1751362859450,0.81491,2453.7,2453.6,0.6509]
[1751362859646,0.81491,2453.7,2453.6,1.46584]
[1751362860151,0.81491,2453.7,2453.6,0.6509]
[1751362860545,0.81494,2453.6,2453.5,1.21556049]
[1751362861250,2.11992,2453.7,2453.5,1.21556049]
[1751362861550,2.11992,2453.7,2453.6,0.81494]
[1751362862246,0.81491,2453.8,2453.7,0.81488]
[1751362862452,0.81491,2453.8,2453.7,3.15798429]
[1751362863847,1.3791,2454.2,2453.7,4.38031429]
[1751362864050,2.19387,2454.2,2454.1,0.81477]
[1751362864747,0.81473,2454.3,2454.2,0.81474]
[1751362864947,0.81473,2454.3,2454.2,1.47254]
[1751362865349,0.81473,2454.3,2454.2,0.6578]
[1751362865548,0.81474,2454.2,2454.1,0.81477]
[1751362865852,0.81477,2454.1,2454.0,1.5073]
[1751362866052,2.25267,2454.1,2454.0,1.5073]
[1751362867459,5.47846423,2454.1,2454.0,1.5073]
[1751362867946,5.47846423,2454.1,2454.0,0.6925]
[1751362868556,5.47846423,2454.1,2454.0,1.50731]
[1751362868955,2.25267,2454.1,2454.0,1.50731]
[1751362869758,1.4379,2454.1,2454.0,1.50731]
[1751362869959,4.04055423,2454.2,2454.1,0.81477]
[1751362871257,0.81477,2454.1,2454.0,1.50729]
[1751362872054,2.26027,2454.1,2454.0,1.50729]
[1751362873761,2.26027,2454.1,2454.0,0.6925]
[1751362875160,2.26027,2454.1,2454.0,1.50731]
[1751362875463,2.26027,2454.1,2454.0,0.6925]
[1751362875856,2.26027,2454.1,2454.0,1.50731]
[1751362876259,2.26027,2454.1,2454.0,0.6925]
[1751362876659,2.26027,2454.1,2454.0,1.50731]
[1751362877361,2.26027,2454.1,2454.0,0.6925]
[1751362877561,2.26027,2454.1,2454.0,1.50731]
[1751362878057,2.26027,2454.1,2454.0,0.6925]
[1751362878561,2.26027,2454.1,2454.0,1.50731]
[1751362878759,1.4455,2454.1,2453.7,1.88623757]
[1751362878962,0.81491,2453.7,2453.6,1.22153757]
[1751362879164,0.81491,2453.7,2453.4,3.65919948]
[1751362879165,0.81494,2453.6,2453.5,2.74838757]
[1751362879562,0.81494,2453.6,2453.5,1.52685]
[1751362880360,0.815,2453.4,2453.3,1.22153757]
[1751362880555,0.815,2453.4,2453.3,1.49421]
[1751362880956,0.815,2453.4,2453.3,0.6792]
[1751362881553,0.815,2453.4,2453.3,1.49424]
[1751362882160,0.815,2453.4,2453.3,0.6792]
[1751362882361,0.815,2453.4,2453.3,1.49424]
[1751362883371,0.815,2453.4,2453.3,0.81504]
[1751362883557,1.467,2453.5,2453.4,0.815]
[1751362883759,2.03722,2453.8,2453.3,2.34310429]
[1751362883961,0.815,2453.5,2453.4,0.81498]
[1751362884667,0.81496,2453.6,2453.5,0.81495]
[1751362885369,0.652,2454.0,2453.5,2.34310429]
[1751362885666,0.81491,2453.7,2453.6,1.48392]
[1751362887063,0.81491,2453.7,2453.6,0.669]
[1751362888366,0.81491,2453.7,2453.6,1.48394]
[1751362889168,0.81491,2453.7,2453.6,0.669]
[1751362889368,0.81491,2453.7,2453.6,1.48394]
[1751362889768,0.81491,2453.7,2453.6,0.669]
[1751362891769,0.81497,2453.5,2453.4,3.15808429]
[1751362893161,0.815,2453.4,2453.3,1.50563]
[1751362894470,0.815,2453.4,2453.3,0.6906]
[1751362895571,0.815,2453.4,2453.3,1.50564]
[1751362897774,0.81507,2453.2,2453.1,1.46758]
[1751362898070,0.81503,2453.4,2453.3,0.815]
[1751362900975,2.03718,2453.8,2453.2,4.38070429]
[1751362901168,0.81499,2453.6,2453.5,3.15804429]
[1751362903472,0.81493,2453.7,2453.6,0.8149]
[1751362903674,0.81491,2453.8,2453.7,0.81488]
[1751362903867,0.81491,2453.8,2453.7,3.15798429]
[1751362905677,0.81486,2453.9,2453.8,0.81484]
[1751362908479,0.81483,2454.0,2453.9,0.81481]
[1751362908679,0.81483,2454.0,2453.9,3.15791429]
[1751362909080,4.04059423,2454.1,2454.0,0.81481]
[1751362909476,0.81481,2454.0,2453.9,3.15792429]
[1751362909970,0.81481,2454.0,2453.9,2.34310429]
[1751362910377,0.81484,2453.9,2453.8,0.81485]
[1751362911476,0.81491,2453.7,2453.6,1.51151]
[1751362911681,0.81491,2453.7,2453.6,3.85461429]
[1751362914283,2.03724,2453.8,2453.4,1.22153757]
[1751362914485,0.81497,2453.5,2453.4,0.81498]
[1751362914684,0.81501,2453.4,2453.3,4.37965186]
[1751362915084,0.81501,2453.4,2453.3,1.22153757]
[1751362915680,0.81501,2453.4,2453.3,2.03657757]
[1751362915883,0.81501,2453.4,2453.3,1.22153757]
[1751362916088,0.81501,2453.4,2453.3,2.70477757]
[1751362916389,0.81501,2453.4,2453.3,1.88973757]
[1751362916776,0.81501,2453.4,2453.3,2.70477757]
[1751362916982,0.81501,2453.4,2453.3,0.6682]
[1751362917389,0.81501,2453.4,2453.3,1.48324]
[1751362917686,0.81501,2453.4,2453.3,0.6682]
[1751362918087,0.81501,2453.4,2453.3,3.82634429]
[1751362920083,0.81501,2453.4,2453.3,0.6682]
[1751362920285,0.81501,2453.4,2453.3,1.48324]
[1751362920588,0.81494,2453.7,2453.6,0.81491]
[1751362920783,0.81487,2453.9,2453.8,0.81482]
[1751362921186,1.49716,2454.2,2454.1,0.81477]
[1751362921388,0.81477,2454.1,2454.0,3.15789429]
[1751362921588,0.81477,2454.1,2454.0,3.15791429]
[1751362922590,0.81481,2454.0,2453.9,0.81481]
[1751362922790,0.81484,2453.9,2453.8,3.85167429]
[1751362922985,0.81484,2453.9,2453.8,0.81487]
[1751362923191,0.81484,2454.0,2453.9,0.81481]
[1751362923392,0.81487,2453.9,2453.8,0.81485]
[1751362924091,1.3093,2454.0,2453.9,0.81484]
[1751362924392,0.8148,2454.1,2454.0,0.81481]
[1751362924691,1.49716,2454.2,2454.1,0.81477]
[1751362925085,1.49714,2454.2,2454.1,0.81477]
[1751362925286,0.6824,2454.2,2454.1,0.81477]
[1751362925480,0.81473,2454.3,2454.2,0.81474]
[1751362926786,0.81474,2454.2,2454.1,1.51935]
[1751362927286,2.03694,2454.1,2453.3,2.42792792]
[1751362927486,0.81489,2453.8,2453.7,0.81487]
[1751362928291,3.45762,2454.0,2453.9,0.81484]
[1751362928491,0.81479,2454.1,2454.0,0.81477]
[1751362928688,1.46878,2454.2,2454.1,0.81477]
[1751362928889,0.6789,2454.3,2454.1,3.15787429]
[1751362929188,4.71941423,2454.3,2454.2,0.81474]
[1751362929588,1.49362,2454.3,2454.2,0.81474]
[1751362930895,2.90602,2454.3,2454.2,0.81474]
[1751362931986,0.81477,2454.2,2454.1,0.81475]
[1751362932187,0.81477,2454.1,2454.0,3.81878429]
[1751362932895,0.81477,2454.1,2454.0,1.47568]
[1751362935188,1.3982,2454.2,2454.0,1.47568]
[1751362935393,1.3982,2454.2,2454.1,0.81477]
[1751362935394,2.21297,2454.2,2454.1,0.81477]
[1751362936299,0.81477,2454.1,2454.0,1.47568]
[1751362939303,0.81476,2454.2,2454.1,0.81477]
[1751362940099,0.81473,2454.3,2454.2,0.81471]
[1751362940302,0.81473,2454.3,2454.2,3.15781429]
[1751362941305,0.81471,2454.3,2454.2,3.15781429]
[1751362942102,0.81471,2454.4,2454.3,0.81467]
[1751362943604,2.0468,2454.5,2454.2,2.34310429]
[1751362943605,2.86146,2454.5,2454.4,0.81467]
[1751362943801,0.81463,2454.6,2454.5,0.81459]
[1751362943999,0.81463,2454.6,2454.5,1.51869]
[1751362945106,0.81461,2454.7,2454.6,0.81457]
[1751362945302,0.81461,2454.6,2454.5,1.51871]
[1751362952012,0.8146,2454.7,2454.6,0.81461]
[1751362954816,0.81461,2454.6,2454.5,1.51871]
[1751362959416,0.81459,2454.8,2454.5,0.7041]
[1751362959611,0.81459,2454.8,2454.7,3.15764429]
[1751362961517,0.81453,2454.9,2454.8,0.81451]
[1751362963517,3.88099423,2455.1,2454.7,4.37946429]
[1751362963724,4.69547423,2455.1,2455.0,0.81447]
[1751362964323,0.81452,2455.0,2454.9,0.81448]
[1751362971325,1.46966,2455.1,2455.0,0.81447]
[1751362971520,0.6552,2455.1,2455.0,0.81447]
[1751362972116,1.46964,2455.1,2455.0,0.81447]
[1751362973820,0.81451,2455.0,2454.9,0.81447]
[1751362974825,0.81455,2454.8,2454.7,0.81457]
[1751362976224,2.34310429,2454.9,2454.5,0.81463]
[1751362976423,2.34310429,2454.9,2454.4,0.6997]
[1751362976424,0.81464,2454.5,2454.4,0.81465]
[1751362977332,0.81468,2454.4,2454.3,13.04899]
[1751362978628,0.81468,2454.4,2454.3,1.46699]
[1751362979431,0.81468,2454.4,2454.3,0.6523]
[1751362980235,0.81468,2454.4,2454.3,1.46701]
[1751362980536,0.81468,2454.4,2454.3,0.6523]
[1751362980731,0.81477,2454.1,2454.0,1.94343757]
[1751362980935,0.81477,2454.1,2454.0,1.49218]
[1751362983636,1.47718,2454.2,2454.1,0.81478]
[1751362988040,2.83948,2454.2,2454.1,0.81478]
[1751362994152,1.47718,2454.2,2454.1,0.81478]
[1751362994747,1.47714,2454.2,2454.1,0.81478]
[1751362994946,0.81474,2454.2,2454.1,0.81478]
[1751362996043,2.23919,2454.5,2454.4,0.81468]
[1751362999146,1.46684,2454.6,2454.5,0.81465]
[1751363002751,0.81464,2454.6,2454.5,0.81465]
[1751363005950,2.18119,2454.8,2454.7,0.81458]
[1751363009444,0.81454,2454.9,2454.8,0.81455]
[1751363014655,0.81455,2454.8,2454.7,0.6562]
[1751363014855,1.3097,2454.9,2454.5,0.6904]
[1751363015355,0.81461,2454.7,2454.6,0.81458]
[1751363034977,0.81457,2454.8,2454.7,0.81455]
[1751363035580,5.26192423,2455.1,2454.8,0.81451]
[1751363035581,0.81454,2454.9,2454.8,0.81451]
[1751363036582,5.26192423,2455.1,2455.0,0.81448]
[1751363036583,4.04028423,2455.1,2455.0,0.81448]
[1751363036783,0.81449,2455.1,2455.0,0.81448]
[1751363037881,3.22579423,2455.4,2455.2,0.81441]
[1751363038075,3.22579423,2455.5,2455.3,2.34310429]
[1751363038272,3.22579423,2455.5,2455.4,0.81435]
[1751363038678,3.22579423,2455.5,2455.4,1.49685]
[1751363039173,4.04007423,2455.6,2455.5,0.81431]
[1751363039375,0.81431,2455.5,2455.4,1.49682]
[1751363039574,0.81441,2455.3,2454.8,2.03632]
[1751363039881,0.8145,2455.0,2454.9,0.81449]
[1751363040384,0.81451,2454.9,2454.8,1.49592]
[1751363040587,1.52182,2455.0,2454.9,0.81451]
[1751363040785,2.89822,2455.0,2454.9,0.81451]
[1751363040988,0.81453,2454.9,2454.8,0.81453]
[1751363042388,4.42680429,2455.0,2454.5,0.6814]
[1751363042584,0.81456,2454.8,2454.7,0.81455]
[1751363043682,2.19302,2454.9,2454.8,0.81455]
[1751363043883,1.3785,2454.9,2454.8,0.81455]
[1751363044284,2.19301,2454.9,2454.8,0.81455]
[1751363048595,1.3785,2454.9,2454.8,0.81455]
[1751363049092,2.19301,2454.9,2454.8,0.81455]
[1751363050293,1.3785,2454.9,2454.8,0.81455]
[1751363050490,2.19301,2454.9,2454.8,0.81455]
[1751363050689,1.3785,2454.9,2454.8,0.81455]
[1751363050894,1.5218,2455.0,2454.9,0.81451]
[1751363051189,1.48794,2455.2,2455.1,0.81445]
[1751363052791,2.82154,2455.2,2455.1,0.81445]
[1751363053694,0.81452,2455.0,2454.9,0.8145]
[1751363054793,1.52472,2455.0,2454.9,0.8145]
[1751363055695,0.81458,2454.8,2454.7,0.81456]
[1751363057696,0.81459,2454.7,2454.6,0.81459]
[1751363057893,0.81457,2454.8,2454.7,0.81456]
[1751363059997,0.81461,2454.7,2454.6,0.81459]
[1751363061795,0.81461,2454.7,2454.5,1.382]
[1751363061796,0.81461,2454.6,2454.5,1.382]
[1751363061994,0.81461,2454.6,2454.5,0.7006]
[1751363062190,0.81461,2454.6,2454.5,1.51525]
[1751363062790,0.81461,2454.6,2454.5,0.7006]
[1751363063397,0.81461,2454.6,2454.5,1.51525]
[1751363068205,2.16091,2454.6,2454.5,0.81465]
[1751363069108,0.81461,2454.6,2454.5,0.81465]
[1751363069600,2.14009,2454.7,2454.6,0.81461]
[1751363069801,1.3255,2454.7,2454.6,0.81461]
[1751363070002,0.6639,2454.7,2454.6,0.81461]
[1751363070399,0.81454,2454.9,2454.6,2.34310429]
[1751363070603,0.81454,2454.9,2454.8,0.81451]
[1751363071997,3.53181,2455.0,2454.9,0.81452]
[1751363072203,3.22579423,2455.2,2454.8,2.03635]
[1751363072498,1.50898,2455.1,2455.0,0.81447]
[1751363072704,2.82908,2455.1,2455.0,0.81447]
[1751363074108,0.7174,2455.3,2454.8,4.37945429]
[1751363074409,0.81447,2455.1,2455.0,0.81445]
[1751363075004,2.14777,2455.1,2455.0,0.81445]
[1751363075211,0.81451,2455.0,2454.9,0.81449]
[1751363081717,0.81448,2455.1,2455.0,0.81445]
[1751363081914,1.50895,2455.2,2455.1,0.81445]
[1751363083211,0.81445,2455.2,2455.1,0.81445]
[1751363087516,0.81445,2455.1,2455.0,1.50426]
[1751363087920,0.81445,2455.2,2455.1,0.81442]
[1751363088119,0.81445,2455.1,2455.0,1.50426]
[1751363093628,0.81445,2455.1,2455.0,0.6898]
[1751363093827,3.15755429,2455.1,2455.0,0.6898]
[1751363094520,3.82525429,2455.1,2455.0,0.6898]
[1751363099233,2.03625,2455.0,2454.6,2.03613757]
[1751363099432,0.81455,2454.9,2454.8,0.81453]
[1751363100336,0.81452,2455.0,2454.9,0.8145]
[1751363100734,0.81455,2454.9,2454.8,0.81453]
[1751363101037,0.81455,2454.8,2454.7,1.48546]
[1751363104041,0.81455,2454.8,2454.7,0.6709]
[1751363105143,0.81465,2454.5,2454.4,2.03621757]
[1751363106042,0.81465,2454.5,2454.4,0.81468]
[1751363106342,0.81465,2454.5,2454.3,3.56464186]
[1751363106343,0.81468,2454.4,2454.3,3.15779429]
[1751363106539,0.81472,2454.3,2454.2,2.03626757]
[1751363110339,0.81472,2454.3,2454.2,0.81473]
[1751363116438,0.81472,2454.3,2454.2,1.50953]
[1751363117540,0.8147,2454.4,2454.3,0.81468]
[1751363117743,0.81465,2454.6,2454.5,0.81465]
[1751363117935,0.81459,2454.7,2454.6,0.81459]
[1751363118135,0.81459,2454.7,2454.6,1.50209]
[1751363119553,1.50958,2454.8,2454.7,0.81458]
[1751363120445,0.81458,2454.8,2454.7,0.81458]
[1751363122147,0.81458,2454.8,2454.4,4.37981429]
[1751363122148,0.81462,2454.7,2454.6,0.81459]
[1751363122348,0.81465,2454.6,2454.5,0.81462]
[1751363123348,1.49821,2454.7,2454.6,0.81462]
[1751363124450,0.81464,2454.6,2454.4,0.6813]
[1751363124648,2.23304,2454.6,2454.5,0.81462]
[1751363125852,0.81465,2454.5,2454.4,1.49597]
[1751363126851,2.23305,2454.6,2454.5,0.81465]
[1751363128455,0.81465,2454.5,2454.4,1.49596]
[1751363130847,0.81465,2454.5,2454.4,0.6813]
[1751363131454,0.81465,2454.5,2454.4,1.49598]
[1751363131752,0.81472,2454.4,2454.3,0.8147]
[1751363131953,1.50932,2454.4,2454.3,0.8147]
[1751363133054,2.82342,2454.4,2454.3,0.8147]
[1751363137859,1.50928,2454.4,2454.3,0.8147]
[1751363139059,0.7203,2454.5,2454.4,0.81468]
[1751363139255,3.22579423,2454.8,2454.7,0.81458]
[1751363139454,1.363,2455.2,2454.7,0.81458]
[1751363139659,1.363,2455.2,2455.0,0.81447]
[1751363139660,0.81447,2455.1,2455.0,0.81447]
[1751363140558,4.82441,2455.2,2454.8,0.6566]
[1751363140759,0.81452,2454.9,2454.8,1.47112]
[1751363141063,0.81452,2454.9,2454.8,0.81452]
[1751363141659,1.48112,2454.9,2454.8,0.81452]
[1751363143568,0.81457,2454.8,2454.7,0.81456]
[1751363143960,1.48115,2454.9,2454.8,0.81455]
[1751363145967,0.6666,2454.9,2454.8,0.81455]
[1751363146171,1.48112,2454.9,2454.8,0.81455]
[1751363147171,0.6666,2454.9,2454.8,0.81455]
[1751363147663,1.4253,2455.0,2454.9,0.81452]
[1751363147863,1.47937,2455.1,2455.0,0.81448]
[1751363149770,1.51084,2455.2,2455.1,0.81445]
[1751363150366,0.81448,2455.1,2455.0,0.81446]
[1751363151063,0.81448,2455.1,2454.9,0.6589]
[1751363151271,0.81448,2455.0,2454.9,0.6589]
[1751363151471,0.81458,2454.8,2454.7,0.81456]
[1751363159572,2.14374,2454.9,2454.8,0.81455]
[1751363166082,1.53221,2455.0,2454.9,0.81452]
[1751363166580,0.81462,2454.6,2454.5,0.81463]
[1751363166781,2.34310429,2454.8,2454.4,0.6748]
[1751363166976,0.81463,2454.6,2454.5,0.81462]
[1751363167176,2.88421,2454.7,2454.5,0.81462]
[1751363167377,0.81462,2454.6,2454.5,0.81462]
[1751363167583,0.6604,2454.7,2454.6,0.81462]
[1751363167777,0.81458,2454.7,2454.6,0.81462]
[1751363168784,0.81463,2454.6,2454.5,0.81462]
[1751363170483,0.81461,2454.7,2454.6,0.81461]
[1751363171681,1.4092,2454.8,2454.4,3.01790429]
[1751363171885,0.81463,2454.6,2454.5,0.81463]
[1751363172182,41.61454,2454.9,2454.8,0.81455]
[1751363172380,0.81454,2454.9,2454.8,0.81455]
[1751363172989,41.61454,2454.9,2454.8,0.81455]
[1751363173383,40.8,2454.9,2454.8,0.81455]
[1751363173888,0.81452,2454.9,2454.8,0.81455]
[1751363176189,3.22579423,2455.2,2455.1,0.81445]
[1751363176485,4.04020423,2455.3,2455.2,0.81442]
[1751363177383,3.22579423,2455.3,2455.2,0.81442]
[1751363177584,4.04018423,2455.3,2455.2,0.81442]
[1751363177787,3.22579423,2455.3,2455.2,0.81442]
[1751363178083,3.22579423,2455.3,2455.2,3.15752429]
[1751363178291,3.22579423,2455.4,2455.3,0.81439]
[1751363180187,0.81433,2455.5,2455.4,0.81435]
[1751363181590,4.04012423,2455.5,2455.4,0.81435]
[1751363181986,0.81433,2455.5,2455.4,0.81435]
[1751363182191,0.81438,2455.4,2455.3,0.81436]
[1751363182392,0.81445,2455.2,2455.1,0.81443]
[1751363182588,3.15755429,2455.2,2455.1,0.81443]
[1751363182787,2.34310429,2455.2,2455.1,0.81443]
[1751363184491,3.15752429,2455.2,2455.1,0.81443]
[1751363184693,3.15752429,2455.2,2454.8,0.81453]
[1751363184694,0.81455,2454.9,2454.8,0.81453]
[1751363184894,0.8146,2454.7,2454.6,0.81459]
[1751363185488,0.81462,2454.6,2454.5,0.81463]
[1751363185690,2.34310429,2454.6,2454.4,0.81466]
[1751363185994,3.15774429,2454.6,2454.4,0.81466]
[1751363186292,4.50744429,2454.6,2454.4,0.81466]
[1751363186491,0.81465,2454.5,2454.4,0.81466]
[1751363186689,2.16434,2454.6,2454.5,0.81465]
[1751363186886,1.3497,2454.6,2454.5,0.81465]
[1751363187689,0.81467,2454.5,2454.4,0.81467]
[1751363188193,1.3497,2454.6,2454.3,0.6924]
[1751363188398,2.16434,2454.6,2454.5,0.81465]
[1751363189902,2.03696,2454.2,2453.7,2.03642757]
[1751363190096,0.81488,2453.8,2453.7,2.03645757]
[1751363190294,0.81488,2453.8,2453.7,1.22153757]
[1751363190696,0.81488,2453.8,2453.7,2.03645757]
[1751363190997,0.81487,2453.9,2453.8,0.81488]
[1751363191201,0.8148,2454.1,2454.0,0.81482]
[1751363191391,0.81478,2454.2,2454.1,0.81478]
[1751363192099,0.81474,2454.3,2454.2,0.81474]
[1751363192401,0.81476,2454.2,2454.1,0.81476]
[1751363193204,0.81474,2454.3,2454.2,0.81474]
[1751363193696,0.7003,2454.4,2454.2,0.81474]
[1751363193897,1.51502,2454.4,2454.3,0.81472]
[1751363195402,1.515,2454.4,2454.3,0.81472]
[1751363195604,0.81473,2454.3,2454.2,0.81473]
[1751363195805,0.81476,2454.2,2454.1,0.81476]
[1751363196103,0.81474,2454.3,2454.2,0.81474]
[1751363197004,2.8291,2454.4,2454.3,0.81472]
[1751363197706,0.81473,2454.3,2454.2,0.81472]
[1751363198207,2.82911,2454.4,2454.3,0.81472]
[1751363198409,0.81473,2454.3,2454.2,0.81472]
[1751363198908,0.81475,2454.2,2454.1,1.52907]
[1751363202612,0.81475,2454.2,2454.1,0.7143]
[1751363202812,0.81475,2454.2,2454.1,1.52908]
[1751363205713,2.25645,2454.2,2454.1,0.81478]
[1751363213117,0.81482,2454.1,2454.0,0.8148]
[1751363213313,4.38012429,2454.1,2453.7,0.6508]
[1751363213512,2.34310429,2453.8,2453.7,1.50548]
[1751363213709,0.81488,2453.9,2453.8,0.81488]
[1751363214912,3.75010429,2454.0,2453.7,0.6906]
[1751363215114,4.38031429,2453.8,2453.3,0.6615]
[1751363215315,0.81501,2453.4,2453.3,1.47652]
[1751363215821,0.815,2453.5,2453.4,0.81501]
[1751363216022,0.81501,2453.4,2453.3,1.47654]
[1751363216218,0.81501,2453.4,2453.3,0.6615]
[1751363216419,0.81505,2453.3,2453.2,1.52365]
[1751363217122,2.34310429,2453.3,2452.9,1.88722963]
[1751363217311,4.06138,2453.5,2452.9,1.88722963]
[1751363217312,2.34310429,2453.1,2453.0,0.7086]
[1751363217516,3.15821429,2453.1,2453.0,0.7086]
[1751363218223,3.15821429,2453.1,2453.0,1.52375]
[1751363218522,3.15821429,2453.1,2453.0,0.7086]
[1751363219122,3.15821429,2453.1,2453.0,1.52375]
[1751363219316,3.15821429,2453.1,2453.0,0.7086]
[1751363219517,3.15821429,2453.1,2453.0,1.52375]
[1751363219922,0.81511,2453.1,2453.0,1.52372]
[1751363220111,2.13679,2453.2,2453.1,0.81511]
[1751363220316,2.0232,2453.2,2453.0,1.52372]
[1751363220515,0.81511,2453.1,2453.0,0.7086]
[1751363221024,2.22581,2453.1,2453.0,0.7086]
[1751363221219,3.75380429,2453.1,2452.8,0.81519]
[1751363221416,0.81521,2452.8,2452.7,1.48693]
[1751363221618,0.81519,2452.9,2452.8,0.81519]
[1751363222121,1.49136,2453.0,2452.9,0.81518]
[1751363222422,0.81521,2452.8,2452.7,1.48692]
[1751363222621,2.0548,2453.0,2452.7,0.6717]
[1751363223125,0.81521,2452.8,2452.7,0.6717]
[1751363223322,0.81521,2452.8,2452.7,1.48695]
[1751363223919,0.81521,2452.8,2452.7,0.6717]
[1751363224524,1.47601,2452.8,2452.7,0.6717]
[1751363224721,2.84311,2452.8,2452.7,0.6717]
[1751363225123,2.0279,2452.8,2452.7,1.48695]
[1751363225324,1.49136,2453.0,2452.9,0.81518]
[1751363225823,0.8152,2452.9,2452.8,0.81519]
[1751363226218,2.1823,2452.9,2452.8,0.81519]
[1751363226418,0.81521,2452.8,2452.7,1.48693]
[1751363226720,2.18231,2452.8,2452.7,1.48693]
[1751363226924,2.18231,2452.8,2452.5,0.6712]
[1751363226925,0.81528,2452.6,2452.5,0.6712]
[1751363227320,0.81531,2452.5,2452.4,0.701]
[1751363227518,3.15841429,2452.5,2452.4,1.51632]
[1751363227923,2.34310429,2452.5,2452.4,1.51632]
[1751363228123,3.15841429,2452.5,2452.4,1.51632]
[1751363228320,2.34310429,2452.5,2452.4,1.51632]
[1751363228724,0.81528,2452.6,2452.5,0.81531]
[1751363228926,3.85197429,2452.7,2452.6,0.81528]
[1751363229126,0.81529,2452.6,2452.5,0.81529]
[1751363229325,3.85197429,2452.7,2452.6,0.81528]
[1751363229829,0.6936,2452.7,2452.6,0.81528]
[1751363230223,1.3671,2452.8,2452.7,0.81525]
[1751363231025,0.81526,2452.7,2452.6,0.81526]
[1751363233629,2.18234,2452.8,2452.7,0.81525]
[1751363233932,0.81527,2452.7,2452.6,0.81526]
[1751363234434,2.18234,2452.8,2452.7,0.81525]
[1751363234734,0.81523,2452.8,2452.7,0.81523]
[1751363235329,0.81527,2452.7,2452.6,0.81526]
[1751363236433,0.81527,2452.7,2452.6,0.81525]
[1751363236628,0.8153,2452.6,2452.5,0.81529]
[1751363237833,3.15837429,2452.7,2452.6,0.81528]
[1751363238023,0.81527,2452.7,2452.6,0.81528]
[1751363240724,0.6625,2452.9,2452.6,2.34310429]
[1751363240926,0.8152,2452.9,2452.8,0.81521]
[1751363241330,1.49137,2453.0,2452.9,0.81518]
[1751363242330,0.6762,2453.0,2452.9,0.81518]
[1751363242526,1.47531,2453.1,2453.0,0.81515]
[1751363242730,2.1748,2453.2,2453.1,0.81511]
[1751363243432,0.81513,2453.1,2453.0,0.81512]
[1751363243832,2.17481,2453.2,2453.1,0.81511]
[1751363244031,0.81511,2453.2,2453.1,0.81511]
[1751363244836,1.51647,2453.3,2453.2,0.81508]
[1751363245037,0.7014,2453.3,2453.2,0.81508]
[1751363245331,15.59207837,2453.4,2453.3,0.81505]
[1751363245640,2.21771,2453.4,2453.3,0.81505]
[1751363246638,0.7025,2453.5,2453.4,0.81501]
[1751363246935,1.51748,2453.5,2453.4,0.81501]
[1751363247128,0.81497,2453.6,2453.5,0.81498]
[1751363247933,0.81497,2453.6,2453.4,0.81499]
[1751363247934,0.81499,2453.5,2453.4,0.81499]
[1751363248331,0.81499,2453.5,2453.2,1.9801]
[1751363248637,0.815,2453.5,2453.4,0.815]
[1751363248931,0.81493,2453.7,2453.6,0.81492]
[1751363249136,0.6827,2453.9,2453.4,2.34310429]
[1751363249435,0.81494,2453.7,2453.6,0.81495]
[1751363249633,0.81494,2453.7,2453.5,0.81495]
[1751363249833,0.81495,2453.6,2453.5,0.81495]
[1751363251640,0.81493,2453.7,2453.6,0.81492]
[1751363251943,0.81495,2453.6,2453.5,0.81495]
[1751363252940,0.81496,2453.6,2453.5,0.81495]
[1751363254640,0.81495,2453.6,2453.5,0.81495]
[1751363254939,0.815,2453.5,2453.4,0.81499]
[1751363256237,6.46152429,2453.8,2453.5,0.81496]
[1751363256238,0.81497,2453.6,2453.5,0.81496]
[1751363256437,0.81493,2453.7,2453.6,0.81491]